[Event "13th KIIT Festival-A 2022"]
[Site "Bhubaneswar"]
[Date "2022.05.26"]
[Round "7.7"]
[White "Saravana, Krishnan P."]
[Black "Nitin, S.."]
[Result "1/2-1/2"]
[ECO "D14"]
[WhiteElo "2269"]
[BlackElo "2399"]
[Annotator "TA"]
[PlyCount "61"]
[EventDate "2022.05.15"]
[EventType "swiss"]
[EventCountry "IND"]
[SourceTitle "playchess.com"]
[Source "ChessBase"]
[SourceQuality "1"]
[TimeControl "5400+30"]

{[%evp 24,61,0,-6,16,-12,4,0,0,0,0,0,0,0,0,0,0,0,0,-1,0,0,0,0,0,0,0,0,0,0,0,0,0,0,0,0,0,0,0,-6]} 1. d4 {[%emt 0:00:03]} d5 {[%emt 0:00:35]} 2. c4 {[%emt 0:00:04]} c6 {[%emt 0:00:06]} 3. Nf3 {[%emt 0:00:05]} Nf6 {[%emt 0:00:06]} 4. cxd5 {[%emt 0:00:05]} cxd5 {[%emt 0:00:04]} 5. Nc3 {[%emt 0:00:04]} Nc6 {[%emt 0:00:05]} 6. Bf4 {[%emt 0:00:04]} Bf5 {[%emt 0:00:06]} 7. e3 {[%emt 0:00:05]} e6 {[%emt 0:00:04]} 8. Bd3 {[%emt 0:00:05]} Bxd3 {[%emt 0:00:04]} 9. Qxd3 {[%emt 0:00:05]} Bd6 {[%emt 0:00:04]} 10. Bxd6 {[%emt 0:00:06]} Qxd6 {[%emt 0:00:04]} 11. O-O {[%emt 0:00:06]} O-O {[%emt 0:00:05]} 12. Rac1 {[%emt 0:00:04]} Rac8 {[%emt 0:00:05]} 13. Ne2 {[%emt 0:00:05] The position is equal.} Ne7 {[%emt 0:00:06] D14: Slav Defence: Exchange variation with ...Bf5.} 14. a3 {[%emt 0:00:06]} a6 {[%emt 0:00:04]} 15. h3 {[%emt 0:00:03]} h6 {[%emt 0:00:05]} 16. Rxc8 {[%emt 0:00:05]} Rxc8 {[%emt 0:00:04]} 17. Rc1 {[%emt 0:00:04]} Rxc1+ {[%emt 0:00:05]} 18. Nxc1 {[%emt 0:00:04]} Ne4 {[%emt 0:00:04]} 19. Qc2 {[%emt 0:00:05]} Qc6 {[%emt 0:00:05]} 20. Qxc6 {[%emt 0:00:05]} Nxc6 $11 {[%emt 0:00:03][%mdl 4096] Endgame KNN-KNN} 21. Nd3 {[%emt 0:00:06]} Kf8 {[%emt 0:00:11]} 22. Kf1 {[%emt 0:00:04]} Ke7 {[%emt 0:00:06]} 23. Ke2 {[%emt 0:00:03]} Kd6 {[%emt 0:00:06]} 24. Nd2 {[%emt 0:00:05]} Nxd2 {[%emt 0:00:04]} 25. Kxd2 {[%emt 0:00:04] KN-KN} b6 {[%emt 0:00:04]} 26. b3 {[%emt 0:00:03]} a5 {[%emt 0:00:04] [#]} 27. a4 $146 {[%emt 0:00:04]} ({Predecessor:} 27. Kc3 f6 28. f3 Na7 29. Kc2 Nb5 30. a4 Nc7 {½-½ (30) Dao,T (2531)-Cao,S (2488) Tagaytay City 2013}) 27... g6 {[%emt 0:00:04]} 28. g3 {[%emt 0:00:03]} h5 {[%emt 0:00:04]} 29. h4 {[%emt 0:00:04]} f6 {[%emt 0:00:04]} 30. Nf4 {[%emt 0:00:04]} Ne7 {[%emt 0:00:02]} 31. Nd3 {[%emt 0:00:06] An uneventful encounter.  Weighted Error Value: White=0.03 (flawless) /Black=0.03 (flawless)} 1/2-1/2

[Event "13th KIIT Festival-A 2022"]
[Site "Bhubaneswar"]
[Date "2022.05.26"]
[Round "7.8"]
[White "Karthikeyan, P.."]
[Black "Ram Aravind L N"]
[Result "1/2-1/2"]
[ECO "B42"]
[WhiteElo "2361"]
[BlackElo "2116"]
[Annotator "TA"]
[PlyCount "136"]
[EventDate "2022.05.15"]
[EventType "swiss"]
[EventCountry "IND"]
[SourceTitle "playchess.com"]
[Source "ChessBase"]
[SourceQuality "1"]
[TimeControl "5400+30"]

{[%evp 13,136,41,38,12,33,29,34,31,41,35,50,34,60,70,69,12,89,52,122,45,202,200,199,106,104,43,324,322,508,393,363,302,395,395,400,393,356,222,215,186,207,175,180,173,145,102,125,117,123,121,212,212,210,210,202,162,187,157,263,267,262,258,270,270,267,270,251,253,262,241,260,250,261,261,260,254,243,239,312,310,305,295,350,241,238,233,334,333,308,241,344,289,550,550,543,508,493,366,445,423,495,478,468,430,430,389,269,0,0,0,0,0,0,0,0,0,0,0,0,0,0,0,0,0,0]} 1. e4 {[%emt 0:00:08]} c5 {[%emt 0:00:15]} 2. Nf3 {[%emt 0:00:11][%cal Bg1f3,Bf3d4,Bd4b3][%mdl 32]} e6 {[%emt 0:00:10]} 3. d4 {[%emt 0:00:10]} cxd4 {[%emt 0:00:09]} 4. Nxd4 {[%emt 0:00:05]} a6 {[%emt 0:00:05]} 5. Bd3 {[%emt 0:00:05]} Bc5 {[%emt 0:00:06]} 6. Nb3 {[%emt 0:00:07]} Be7 {[%emt 0:00:05]} 7. Nc3 {[%emt 0:03:17]} d6 {[%emt 0:00:54]} 8. Qe2 {[%emt 0:02:23] B42: Sicilian: Kan Variation: 5 Bd3.} Qc7 {[%emt 0:00:57]} 9. Be3 {[%emt 0:00:45]} Nf6 {[%emt 0:00:12][%cal Bg8f6,Bf6d7,Bd7c5][%mdl 32]} 10. g4 {[%emt 0:03:28][%cal Bg2g4,Bg4g5][%mdl 32] White is slightly better.} Nc6 {[%emt 0:01:23]} 11. g5 {[%emt 0:00:37]} Nd7 {[%emt 0:00:05]} 12. f4 {[%emt 0:00:48]} Nc5 {[%emt 0:07:24]} 13. O-O-O $36 {[%emt 0:06:28][%mdl 2048] White has the initiative.} b5 {[%emt 0:03:43]} 14. Kb1 {[%emt 0:04:56]} (14. Nxc5 $14 dxc5 15. e5) 14... Bb7 {[%emt 0:12:54]} (14... b4 $11 {keeps the balance.} 15. Bxc5 dxc5) 15. Rhe1 {[%emt 0:07:11][%cal Oe4e5] [#]} Na5 $146 {[%emt 0:11:53]} (15... O-O $14) ({Predecessor:} 15... Na4 16. Nxa4 bxa4 17. Nd4 Nxd4 18. Bxd4 e5 19. Be3 a3 20. f5 axb2 21. f6 gxf6 22. gxf6 {0-1 (70) Ulfarsson,M (2403)-Thorfinnsson,B (2387) Reykjavik 2008}) 16. f5 {[%emt 0:14:14]} ({Better is} 16. Nxa5 $16 Qxa5 17. Nd5 $1) 16... b4 $2 {[%emt 0:10:04] [#]} ({Black should try} 16... Nxd3 $14 17. cxd3 (17. Qxd3 Nc4 $11) (17. Rxd3 Nxb3 18. axb3 b4 $11) 17... Nxb3 18. axb3 O-O) 17. Nd5 $1 {[%emt 0:08:31][%mdl 512]} exd5 {[%emt 0:02:28]} 18. Bxc5 {[%emt 0:01:58]} (18. exd5 $18 Naxb3 19. f6 Bxd5 20. axb3) 18... Nxb3 $16 {[%emt 0:08:27]} (18... dxc5 $2 19. exd5 (19. Nxa5 c4 $16) 19... O-O-O 20. Qxe7 Nxb3 21. axb3 (21. cxb3 Rxd5 22. Qxc7+ Kxc7 $18) 21... Bxd5 22. Bxa6+ Kb8 23. Bb5 $18) 19. Bxb4 {[%emt 0:08:02]} (19. Bf2 $16 Bxg5 20. exd5+ (20. axb3 O-O $14) (20. cxb3 dxe4 21. Bxe4 O-O $11) 20... Kf8 21. axb3) 19... Nc5 $2 {[%emt 0:00:29][%mdl 8192]} (19... Nd4 $14 20. Qg4 Nc6 21. exd5 Nxb4 22. Qxb4 f6 23. gxf6 gxf6) 20. exd5 $18 {[%emt 0:05:35]} Bxd5 {[%emt 0:18:09]} (20... O-O-O $142) 21. f6 {[%emt 0:05:26][%mdl 64] Pin} Be6 {[%emt 0:00:28]} 22. fxe7 {[%emt 0:01:04]} Qxe7 {[%emt 0:00:16]} 23. Bxc5 {[%emt 0:06:08]} dxc5 {[%emt 0:00:02]} 24. Qe4 {[%emt 0:00:35]} Rd8 {[%emt 0:01:43]} 25. h4 {[%emt 0:05:15] Strongly threatening Qc6+.} g6 {[%emt 0:01:28]} 26. Qa4+ {[%emt 0:08:50]} Kf8 {[%emt 0:04:22]} 27. Qa5 {[%emt 0:02:57][%cal Od3g6] And now Bxg6! would win.} (27. Qxa6 Kg7 $16) (27. Bxa6 h6) 27... Kg7 {[%emt 0:02:36]} 28. Qc3+ {[%emt 0:00:16]} (28. Qxa6 Ra8 29. Qc4 Bxc4 $11) 28... Rd4 {[%emt 0:00:20]} 29. Bc4 {[%emt 0:01:17]} Rhd8 {[%emt 0:00:28]} 30. Bxe6 {[%emt 0:00:33]} (30. Bxa6 Qa7 31. Rxd4 Rxd4 $11) 30... fxe6 {[%emt 0:00:05]} 31. b3 {[%emt 0:01:53]} Kg8 {[%emt 0:01:59]} (31... e5 $16 32. Rxd4 cxd4) 32. Rxd4 {[%emt 0:00:06]} Rxd4 {[%emt 0:03:22][%mdl 4096] Endgame KQR-KQR} 33. Re5 $1 {[%emt 0:01:13]} Rd5 {[%emt 0:01:00]} 34. Re4 {[%emt 0:00:45]} e5 {[%emt 0:01:12]} 35. Qc4 {[%emt 0:00:34][%csl LRa6,LRd5] Inhibits Rd4.} Qe6 {[%emt 0:00:13]} (35... Qd6 $16 36. Kc1 h5) 36. Kb2 {[%emt 0:00:05]} Kg7 {[%emt 0:00:12]} 37. Re3 {[%emt 0:01:14]} h6 {[%emt 0:02:34]} 38. Rd3 {[%emt 0:00:36]} Rd6 {[%emt 0:00:04]} 39. Qxe6 {[%emt 0:00:07]} (39. Qxc5 $6 Rxd3 40. cxd3 hxg5 $18) 39... Rxe6 {[%emt 0:00:01] KR-KR} 40. Rd7+ {[%emt 0:00:01]} Kh8 {[%emt 0:00:38]} 41. gxh6 {[%emt 0:00:05]} e4 {[%emt 0:00:02]} 42. Kc1 {[%emt 0:00:01]} e3 {[%emt 0:02:50]} 43. Kd1 {[%emt 0:00:04]} Re4 {[%emt 0:00:03]} 44. Ke2 {[%emt 0:00:48]} Rxh4 {[%emt 0:00:36]} 45. Kxe3 {[%emt 0:00:15]} Rxh6 {[%emt 0:00:52]} 46. Rc7 {[%emt 0:01:34]} Rh3+ {[%emt 0:00:56]} 47. Kd2 {[%emt 0:00:47]} Rh2+ {[%emt 0:00:48]} 48. Kd3 {[%emt 0:00:36]} Rh3+ {[%emt 0:00:05]} 49. Kc4 {[%emt 0:00:46]} Rh2 {[%emt 0:00:08]} (49... Rh4+ {was necessary.} 50. Kd5 (50. Kxc5 g5 $16) 50... Rh5+ 51. Kd6 Rh6) 50. Kc3 $1 {[%emt 0:00:47]} ({Avoid the trap} 50. Kxc5 $2 Rxc2+ 51. Kd6 Rxc7 52. Kxc7 g5 $19) 50... Rh3+ {[%emt 0:00:05] [#]} 51. Kb2 $1 {[%emt 0:00:39]} Rh5 {[%emt 0:00:01] [#]} (51... a5 {is a better defense.} 52. Ra7 (52. Rxc5 Rh5 $18) 52... g5) 52. a4 $1 {[%emt 0:00:29][%cal Ba2a4,Ba4a5][%mdl 32]} Re5 $2 {[%emt 0:02:40]} (52... g5 53. Rxc5 Kg7) 53. Rc6 {[%emt 0:00:10][%csl LRa6,LRg6]} Kg7 {[%emt 0:00:07]} 54. Rxa6 {[%emt 0:00:16]} g5 {[%emt 0:00:02]} 55. Ra7+ {[%emt 0:00:24]} Kg6 {[%emt 0:00:47]} 56. Ra8 {[%emt 0:00:01]} Kg7 {[%emt 0:00:07]} 57. a5 {[%emt 0:00:46]} g4 {[%emt 0:00:04]} 58. a6 {[%emt 0:00:09] Intending Rb8 and mate.} Re6 {[%emt 0:00:05]} 59. a7 {[%emt 0:01:03] Threatening mate with Rd8.} Ra6 {[%emt 0:06:47]} 60. Rc8 $2 {[%emt 0:00:01]} (60. Kc3 $18 Ra1 61. Re8 Rxa7 62. Re4) 60... Rxa7 $11 {[%emt 0:00:00] The position is equal.} 61. Rxc5 {[%emt 0:00:10] aiming for Rg5+.} Kf6 {[%emt 0:00:00] Prevents Rg5.} 62. Rd5 {[%emt 0:01:49]} g3 {[%emt 0:00:00]} 63. c4 {[%emt 0:00:35]} g2 {[%emt 0:00:00]} 64. Rd1 {[%emt 0:00:01]} Rg7 {[%emt 0:00:00]} 65. Rg1 {[%emt 0:00:17]} Ke5 {[%emt 0:00:00]} 66. Kc3 {[%emt 0:00:40]} Rg3+ {[%emt 0:00:00]} 67. Kb4 {[%emt 0:00:40]} Kd4 {[%emt 0:00:00]} 68. c5 {[%emt 0:00:12] Hoping for c6.} Kd5 {[%emt 0:00:00] White really could win this.  Weighted Error Value: White=0.27 (precise) /Black=0.43} 1/2-1/2

[Event "13th KIIT Festival-A 2022"]
[Site "Bhubaneswar"]
[Date "2022.05.26"]
[Round "7.9"]
[White "Kiran, Manisha Mohanty"]
[Black "Aaryan Varshney"]
[Result "1/2-1/2"]
[ECO "B95"]
[WhiteElo "2098"]
[BlackElo "2308"]
[Annotator "TA"]
[PlyCount "61"]
[EventDate "2022.05.15"]
[EventType "swiss"]
[EventCountry "IND"]
[SourceTitle "playchess.com"]
[Source "ChessBase"]
[SourceQuality "1"]
[TimeControl "5400+30"]

{[%evp 13,61,0,0,-14,-9,-14,-11,0,0,-18,2,0,0,0,-5,-32,0,0,37,10,16,0,53,38,37,49,77,85,85,88,79,0,156,131,198,175,472,36,36,3,97,102,116,0,0,-66,-66,-79,0,-25]} 1. e4 {[%emt 0:00:15]} c5 {[%emt 0:00:05]} 2. Nf3 {[%emt 0:00:07]} d6 {[%emt 0:00:04]} 3. d4 {[%emt 0:00:05]} cxd4 {[%emt 0:00:04]} 4. Nxd4 {[%emt 0:00:06]} Nf6 {[%emt 0:00:08]} 5. Nc3 {[%emt 0:00:05]} a6 {[%emt 0:00:02]} 6. Bg5 {[%emt 0:00:08]} e6 {[%emt 0:00:05]} 7. Qe2 {[%emt 0:00:33]} Be7 {[%emt 0:00:26]} 8. h4 {[%emt 0:00:22] B95: Sicilian Najdorf: 6 Bg5 e6, unusual White 7th moves.} b5 {[%emt 0:00:31]} 9. a3 {[%emt 0:00:17]} Bb7 {[%emt 0:00:28]} 10. O-O-O {[%emt 0:00:17]} Nbd7 {[%emt 0:00:45]} 11. Rh3 {[%emt 1:33:45]} Rc8 {[%emt 0:01:02]} 12. Kb1 {[%emt 0:00:00]} h6 {[%emt 0:00:13] [#]} 13. Bd2 $146 {[%emt 0:00:00]} ({Predecessor:} 13. Bc1 h5 14. Qe1 Qc7 15. Bg5 O-O 16. f3 Nc5 17. Qe3 g6 18. Bd3 e5 19. Nde2 Nxd3 20. Qxd3 {½-½ (35) Alekseenko,K (2699)-Van Wely,L (2620) Chalons en Champagne 2021}) 13... h5 {[%emt 0:00:13] Against g4} 14. Bg5 {[%emt 0:00:00]} g6 {[%emt 0:07:01]} 15. f4 {[%emt 0:00:00]} Qc7 {[%emt 0:07:58]} 16. Nb3 {[%emt 0:00:00]} (16. Rhd3 $5 {[%cal Rd4b3]}) 16... O-O {[%emt 0:10:30]} 17. Rhd3 {[%emt 0:00:00][%cal Oe4e5]} Nb6 {[%emt 0:05:04]} (17... Rfd8 $11) 18. f5 $1 $14 {[%emt 0:00:00]} Nc4 {[%emt 0:08:20]} 19. Nd4 {[%emt 0:00:00]} Qd7 {[%emt 0:10:12]} 20. Rg3 {[%emt 0:00:00] Black must now prevent Bxf6.} Ng4 {[%emt 0:26:22]} 21. Rxg4 {[%emt 0:00:00]} hxg4 {[%emt 0:00:30]} 22. f6 {[%emt 0:00:00]} (22. Qxg4 $16 {Hoping for f6.} exf5 23. Nxf5 gxf5 24. exf5) 22... Bd8 {[%emt 0:00:26]} ({Better is} 22... Bxf6 $1 $11 23. Bxf6 e5) 23. Qxg4 $16 {[%emt 0:00:00] Bxc4 is the strong threat. White is more active.} Ne5 {[%emt 0:07:23]} (23... Nxa3+ $16 24. bxa3 Rxc3) 24. Qf4 $18 {[%emt 0:00:00]} Qc7 $2 {[%emt 0:05:45]} (24... Kh7 {keeps fighting.}) 25. Bh6 $2 {[%emt 0:00:00]} (25. h5 $18) 25... Nd7 $1 $14 {[%emt 0:00:15]} (25... Re8 $2 26. Bg7 Bxf6 27. Bxf6 $18) 26. Bg7 {[%emt 0:00:00] Threatening mate with Qh6.} Bxf6 {[%emt 0:00:21]} 27. Bxf6 $16 {[%emt 0:00:00] Threatens to win with Be7. Really sharp!} e5 {[%emt 0:00:16] [#]} 28. Qg5 {[%emt 0:00:00]} Nxf6 $11 {[%emt 0:00:16]} 29. Qxf6 {[%emt 0:00:00]} (29. Ndxb5 $1 $11 Qe7 30. Nxd6 Rxc3 31. bxc3) 29... exd4 $15 {[%emt 0:00:08]} 30. Qxd4 {[%emt 0:00:00]} Rfd8 {[%emt 0:00:14]} (30... Qc5 $17) 31. h5 {[%emt 0:00:00] Weighted Error Value: White=0.39/Black=0.38} 1/2-1/2

[Event "13th KIIT Festival-A 2022"]
[Site "Bhubaneswar"]
[Date "2022.05.26"]
[Round "7.10"]
[White "Arpita, Mukherjee"]
[Black "Koustav Chakraborty"]
[Result "1-0"]
[ECO "B31"]
[WhiteElo "2275"]
[BlackElo "1945"]
[Annotator "TA"]
[PlyCount "65"]
[EventDate "2022.05.15"]
[EventType "swiss"]
[EventCountry "IND"]
[SourceTitle "playchess.com"]
[Source "ChessBase"]
[SourceQuality "1"]
[TimeControl "5400+30"]

{[%evp 23,65,6,18,17,99,37,41,20,32,16,58,56,133,118,135,127,136,87,79,81,68,45,45,41,66,76,70,108,167,160,156,143,160,153,241,212,206,206,376,238,29997,29997,29998,29998]} 1. e4 {[%emt 0:06:18]} c5 {[%emt 0:00:06]} 2. Nf3 {[%emt 0:00:08]} Nc6 {[%emt 0:00:04]} 3. Bb5 {[%emt 0:00:51]} g6 {[%emt 0:00:06]} 4. Bxc6 {[%emt 0:00:17]} dxc6 {[%emt 0:00:03]} 5. d3 {[%emt 0:00:20]} Bg7 {[%emt 0:00:06]} 6. Nc3 {[%emt 0:00:11]} Nf6 {[%emt 0:00:07]} 7. Be3 {[%emt 0:00:18]} b6 {[%emt 0:00:04]} 8. h3 {[%emt 0:00:25]} Qc7 {[%emt 0:00:31]} 9. Qd2 {[%emt 0:00:38]} e5 {[%emt 0:00:04]} 10. Bh6 {[%emt 0:01:57]} O-O {[%emt 0:00:08]} 11. O-O {[%emt 0:06:23]} Nh5 {[%emt 0:01:47]} 12. Bxg7 {[%emt 0:00:39]} Kxg7 {[%emt 0:00:16]} 13. Ne2 {[%emt 0:00:19] B31: Sicilian: 2...Nc6 3 Bb5 g6.} f6 {[%emt 0:10:21] [#]} (13... Kg8) (13... Re8 $11 {keeps the balance.}) 14. a3 {[%emt 0:12:56] [#]} (14. g4) (14. g4 $1 $16 {[%cal Rg4h5]}) 14... Kh8 $146 {[%emt 0:12:12]} ({Predecessor:} 14... a5 15. b4 axb4 16. axb4 Rxa1 17. Rxa1 cxb4 18. Qxb4 Be6 19. Ra6 Rb8 20. Qa3 Rb7 {½-½ (66) Vescovi,G (2619)-Barreto,I (2202) Vitoria 2006}) 15. Qh6 {[%emt 0:13:12][%cal Rh6f8] White is slightly better.} Be6 {[%emt 0:24:04]} 16. b4 {[%emt 0:04:16]} c4 {[%emt 0:09:52]} 17. d4 {[%emt 0:04:50]} Nf4 {[%emt 0:01:43]} (17... exd4 $14 18. Nfxd4 (18. Nexd4 Rfe8 $14) 18... Bf7) 18. Nxf4 $16 {[%emt 0:01:52]} exf4 {[%emt 0:00:06]} 19. Rfe1 {[%emt 0:01:48][%cal Bf1e1,Be1e5,Be5e7,Be7c7,Bc7h7][%mdl 32]} Bg8 {[%emt 0:12:52]} 20. e5 {[%emt 0:02:11]} (20. c3 $142) 20... fxe5 {[%emt 0:00:05]} 21. Rxe5 {[%emt 0:00:38]} Qg7 {[%emt 0:01:58]} 22. Qxg7+ {[%emt 0:02:34]} Kxg7 {[%emt 0:00:07]} 23. Rae1 {[%emt 0:00:05]} h6 {[%emt 0:10:59]} 24. Re7+ {[%emt 0:01:47]} Kf6 {[%emt 0:00:19]} 25. Rc7 {[%emt 0:00:56] White is much more active.} Bd5 {[%emt 0:00:46]} (25... Rfc8 $16 26. Rd7 Rd8) 26. Ne5 $36 {[%emt 0:01:50][%mdl 2048] Threatens to win with Nd7+. White is on the roll.} Rfe8 {[%emt 0:01:13]} 27. h4 {[%emt 0:00:31]} h5 {[%emt 0:01:45]} 28. f3 {[%emt 0:06:14]} Rec8 {[%emt 0:02:43]} (28... g5 $16 29. hxg5+ Kxg5) 29. Rh7 {[%emt 0:01:44] Intending Nd7+ and mate.} Re8 {[%emt 0:01:13]} 30. Kf2 {[%emt 0:01:06]} Kf5 $2 {[%emt 0:00:54]} (30... b5 {might work better.} 31. c3 a6) 31. Rc7 {[%emt 0:02:34] Hoping for Rg7.} Re6 $2 {[%emt 0:01:06]} (31... a5 $18 32. bxa5 Rxa5) 32. Rf7+ {[%emt 0:01:42]} Rf6 {[%emt 0:00:02] [#]} 33. Nd7 $1 {[%emt 0:00:19] Weighted Error Value: White=0.15 (very precise) /Black=0.69} 1-0

[Event "13th KIIT Festival-A 2022"]
[Site "Bhubaneswar"]
[Date "2022.05.26"]
[Round "7.11"]
[White "Laxman, R.R."]
[Black "Bristy Mukherjee"]
[Result "1-0"]
[ECO "A96"]
[WhiteElo "2420"]
[BlackElo "1887"]
[Annotator "TA"]
[PlyCount "105"]
[EventDate "2022.05.15"]
[EventType "swiss"]
[EventCountry "IND"]
[SourceTitle "playchess.com"]
[Source "ChessBase"]
[SourceQuality "1"]
[TimeControl "5400+30"]

{[%evp 15,105,50,59,49,67,51,64,34,38,45,45,49,47,39,41,32,33,25,39,40,35,33,39,29,37,0,35,14,25,25,18,22,25,23,56,49,58,8,14,11,15,0,18,0,0,-47,0,0,0,0,0,0,0,0,8,8,0,0,7,0,0,0,98,84,154,158,275,248,396,390,597,214,587,586,541,309,298,285,468,456,539,391,665,651,828,600,1116,1097,1421,910,1218,1033]} 1. d4 {[%emt 0:00:04]} f5 {[%emt 0:03:00]} 2. Nf3 {[%emt 0:00:11]} e6 {[%emt 0:00:26]} 3. g3 {[%emt 0:00:38]} Nf6 {[%emt 0:01:32]} 4. Bg2 {[%emt 0:00:06]} Be7 {[%emt 0:00:16]} 5. c4 {[%emt 0:00:27]} d6 {[%emt 0:00:13]} 6. O-O {[%emt 0:00:07]} O-O {[%emt 0:00:19]} 7. b3 {[%emt 0:03:14]} Qe8 {[%emt 0:05:17]} 8. Bb2 $1 {[%emt 0:00:08] 8.Bb2 scores better than 8.Nc3.} Nbd7 {[%emt 0:04:55]} 9. Nc3 {[%emt 0:00:25] A96: Classical Dutch: Fluid Systems: Early deviations.} Qh5 {[%emt 0:17:32]} 10. e3 {[%emt 0:02:58]} Ne4 {[%emt 0:18:11]} 11. Nxe4 {[%emt 0:08:54] White is slightly better.} fxe4 {[%emt 0:00:12]} 12. Nd2 {[%emt 0:00:04][%csl LRe4,LRh5]} Qxd1 {[%emt 0:00:29]} 13. Raxd1 {[%emt 0:00:02]} d5 {[%emt 0:00:30]} 14. f3 {[%emt 0:00:03]} exf3 {[%emt 0:01:21]} 15. Bxf3 {[%emt 0:00:05]} Nf6 {[%emt 0:01:28]} 16. e4 {[%emt 0:00:06]} c6 {[%emt 0:01:34] [#]} 17. a3 $146 {[%emt 0:00:38]} ({Predecessor:} 17. e5 Ne8 18. Bh5 g6 19. Rxf8+ Bxf8 20. Bg4 Ng7 21. Nf3 Nf5 22. Kf2 Bd7 23. Bh3 {½-½ (41) Polushkina,S (2064)-Seliger,F (1983) Germany 2009}) 17... Bd7 {[%emt 0:01:23]} 18. Rde1 {[%emt 0:02:14] exd5 is the strong threat.} Rf7 {[%emt 0:03:54]} 19. Bg2 {[%emt 0:03:07]} Raf8 {[%emt 0:05:03]} 20. Bh3 {[%emt 0:00:21]} g5 {[%emt 0:02:00]} 21. b4 {[%emt 0:02:19]} Kg7 {[%emt 0:03:08]} 22. Bc3 {[%emt 0:01:40]} h5 {[%emt 0:00:58]} 23. a4 {[%emt 0:00:25][%cal Ba3a4,Ba4a5][%mdl 32]} dxe4 {[%emt 0:11:20]} 24. Bg2 {[%emt 0:12:20]} Kh6 {[%emt 0:03:18]} 25. a5 {[%emt 0:02:17]} a6 {[%emt 0:02:08]} 26. Bxe4 {[%emt 0:00:11]} (26. Nxe4 $14 Nxe4 27. Rxf7 (27. Bxe4 Rxf1+ 28. Rxf1 Rxf1+ 29. Kxf1 Be8 $14) 27... Rxf7 28. Bxe4) 26... Nxe4 $11 {[%emt 0:01:15]} 27. Rxf7 {[%emt 0:00:07]} Rxf7 {[%emt 0:00:06]} 28. Nxe4 {[%emt 0:00:07]} Rf3 {[%emt 0:05:55]} 29. Kg2 {[%emt 1:01:42]} g4 {[%emt 0:00:43]} 30. Bd2+ {[%emt 0:00:00]} (30. Rf1 $11) 30... Kg7 {[%emt 0:01:00]} (30... Kg6 $15 {deserves consideration.}) 31. Nc5 {[%emt 0:00:00]} Bxc5 {[%emt 0:00:42]} 32. bxc5 {[%emt 0:00:00][%mdl 4096] Endgame KRB-KRB} ({Of course not} 32. dxc5 Kf6 $15) 32... Rd3 {[%emt 0:01:35]} 33. Bf4 {[%emt 0:00:00]} Ra3 {[%emt 0:03:10]} 34. Be5+ {[%emt 0:00:00]} Kg8 {[%emt 0:00:54]} 35. Rb1 {[%emt 0:00:00]} Bc8 {[%emt 0:00:39]} 36. Rf1 {[%emt 0:00:00]} Bd7 {[%emt 0:01:30]} 37. Rf6 {[%emt 0:00:00]} Ra2+ {[%emt 0:00:26]} 38. Kg1 {[%emt 0:00:00]} Ra1+ {[%emt 0:00:04] [#]} (38... Be8 $1 $11) 39. Kf2 $1 $16 {[%emt 0:00:00] Strongly threatening Rh6.} Ra2+ {[%emt 0:00:03]} ({Black should play} 39... Rxa5 40. Rg6+ Kf8) 40. Ke3 {[%emt 0:00:00]} Ra3+ {[%emt 0:01:23]} (40... Be8 $16 {was called for.} 41. Rh6 (41. Rxe6 Bf7 $16) 41... Kf8) 41. Ke4 $18 {[%emt 0:00:00]} Rf3 {[%emt 0:00:29]} (41... Ra1 $142 42. Rh6 Rxa5 43. Rxh5 Ra1) 42. Rh6 {[%emt 0:00:00] Black must now prevent Rh8+.} Be8 {[%emt 0:00:32]} (42... Rf5 {might work better.} 43. Rh8+ Kf7) 43. Rh8+ {[%emt 0:00:00]} Kf7 {[%emt 0:00:07]} 44. Bd6 {[%emt 0:00:00] And now Rf8+ would win.} Bd7 {[%emt 0:00:25]} 45. Rd8 {[%emt 0:00:00]} Be8 {[%emt 0:00:24]} 46. Rb8 {[%emt 0:00:00]} Rb3 $2 {[%emt 0:00:27]} (46... Rf2 47. Rxb7+ Kf6 48. Be7+ Kg6) 47. Kf4 {[%emt 0:00:00]} Rf3+ {[%emt 0:01:04] [#]} 48. Kg5 $1 {[%emt 0:00:00]} Rf5+ $2 {[%emt 0:00:25]} (48... Rb3 49. Kxh5 Rb2 50. Kxg4 Rxh2 51. Rxb7+ Kg6) 49. Kh6 {[%emt 0:00:00] White is clearly winning.} Rf2 {[%emt 0:00:42]} 50. Be5 {[%emt 0:00:00]} Rb2 {[%emt 0:00:31]} 51. d5 {[%emt 0:00:00][%cal Bd4d5,Bd5e6][%mdl 32] White threatens dxe6+ and mate.} Rb3 {[%emt 0:00:24]} 52. dxe6+ {[%emt 0:00:00]} Ke7 {[%emt 0:00:05]} 53. Bd6+ {[%emt 0:00:00] Weighted Error Value: White=0.18 (very precise) /Black=0.39} 1-0